fUST/lending_fUST_20250718
["ID","MTS","AMOUNT","RATE_DAILY","PERIOD"]
[373056266,1752849048612,-460.0,0.00018134,2]
[373056267,1752849048621,-648.75,0.00018134,2]
[373056268,1752849048631,-460.0,0.00018134,2]
[373056269,1752849048640,-460.0,0.00018134,2]
[373056270,1752849048650,-460.0,0.00018134,2]
[373056271,1752849048660,-460.0,0.00018134,2]
[373056272,1752849048669,-460.0,0.00018134,2]
[373056274,1752849048679,-151.0,0.00018134,2]
[373056275,1752849048689,-460.0,0.00018134,2]
[373056276,1752849048699,-488.61,0.00018134,2]
[373056277,1752849048710,-460.0,0.00018134,2]
[373056278,1752849048720,-460.0,0.00018135,2]
[373056279,1752849048729,-226.49,0.00018229,2]
[373056280,1752849048738,-460.0,0.00018229,2]
[373056281,1752849048749,-460.0,0.00018229,2]
[373056282,1752849048758,-460.0,0.00018229,2]
[373056283,1752849048768,-356.27654834,0.00018229,2]
[373056284,1752849048777,-460.0,0.00018229,2]
[373056285,1752849048787,-460.0,0.00018229,2]
[373056286,1752849048797,-460.0,0.00018229,2]
[373056287,1752849048806,-460.0,0.00018229,2]
[373056288,1752849048816,-502.49,0.00018229,2]
[373056289,1752849048830,-460.0,0.00018229,2]
[373056290,1752849048840,-460.0,0.00018229,2]
[373056291,1752849048850,-460.0,0.00018229,2]
[373056293,1752849048859,-460.0,0.00018229,2]
[373056295,1752849048869,-460.0,0.00018229,2]
[373056296,1752849048880,-460.0,0.00018229,2]
[373056298,1752849048890,-460.0,0.00018229,2]
[373056300,1752849048899,-460.0,0.00018229,2]
[373056302,1752849048910,-151.0,0.00018229,2]
[373056304,1752849048919,-460.0,0.00018229,2]
[373056306,1752849048929,-324.92702152,0.00018229,2]
[373056308,1752849048939,-494.691019,0.00018229,2]
[373056310,1752849048948,-460.0,0.00018229,2]
[373056311,1752849048958,-494.691019,0.00018229,2]
[373056313,1752849048967,-460.0,0.00018229,2]
[373056315,1752849048976,-808.77,0.00018229,2]
[373056317,1752849048986,-460.0,0.00018229,2]
[373056319,1752849048996,-460.0,0.00018229,2]
[373056321,1752849049005,-779.54,0.00018229,2]
[373056323,1752849049015,-460.0,0.00018229,2]
[373056325,1752849049024,-460.0,0.00018229,2]
[373056327,1752849049034,-680.58,0.00018229,2]
[373056329,1752849049044,-223.470442,0.00018229,2]
[373056331,1752849049053,-460.0,0.00018229,2]
[373056333,1752849049062,-223.470442,0.00018229,2]
[373056335,1752849049074,-498.2,0.0001823,2]
[373056337,1752849049083,-460.0,0.0001823,2]
[373056339,1752849049093,-460.0,0.0001823,2]
[373056341,1752849049102,-464.68,0.0001823,2]
[373056343,1752849049111,-460.0,0.0001823,2]
[373056345,1752849049121,-539.0,0.00018231,2]
[373056347,1752849049130,-151.0,0.00018231,2]
[373056349,1752849049140,-275.338132,0.00018231,2]
[373056351,1752849049149,-275.338132,0.00018231,2]
[373056353,1752849049159,-333.065278,0.00018231,2]
[373056355,1752849049168,-333.065278,0.00018231,2]
[373056357,1752849049177,-460.0,0.00018231,2]
[373056359,1752849049187,-3559.22,0.00018232,2]
[373056361,1752849049196,-1009.17,0.00018232,2]
[373056363,1752849049205,-1147.06,0.00018232,2]
[373056365,1752849049215,-460.0,0.00018233,2]
[373056367,1752849049225,-460.0,0.00018234,2]
[373056369,1752849049234,-460.0,0.00018234,2]
[373056371,1752849049243,-2090.71,0.00018234,2]
[373056373,1752849049252,-460.0,0.00018234,2]
[373056375,1752849049262,-151.0,0.00018234,2]
[373056377,1752849049271,-282.56478394,0.00018234,2]
[373056379,1752849049281,-459.59842107,0.00018234,2]
[373056381,1752849049290,-1443.93,0.00018234,2]
[373056383,1752849049300,-219.48815404,0.00018234,2]
[373056385,1752849049310,-3883.56,0.00018234,2]
[373056388,1752849049322,-1381.69,0.00018234,2]
[373056390,1752849049332,-1000.0,0.00018301,2]
[373056392,1752849049342,-1500.0,0.00018301,2]
[373056394,1752849049352,-1500.0,0.00018305,2]
[373056396,1752849049362,-713.734342,0.00018305,2]
[373056398,1752849049372,-713.734342,0.00018305,2]
[373056400,1752849049381,-151.0,0.00018305,2]
[373056402,1752849049391,-151.0,0.00018305,2]
[373056403,1752849049400,-151.0,0.00018334,2]
[373056406,1752849049410,-318.462048,0.00018334,2]
[373056407,1752849049419,-318.462048,0.00018334,2]
[373056410,1752849049429,-151.0,0.00018334,2]
[373056412,1752849049438,-629.4813504,0.00018398,2]
[373056413,1752849049448,-576.0,0.00018398,3]
[373056415,1752849049458,-1779.88143012,0.000184,2]
[373056418,1752849049469,-460.0,0.00018404,2]
[373056419,1752849049479,-476.72,0.00018404,2]
[373056422,1752849049489,-460.0,0.00018404,2]
[373056423,1752849049499,-1449.78,0.00018404,2]
[373056425,1752849049508,-460.0,0.00018406,2]
[373056427,1752849049517,-564.89,0.00018406,2]
[373056429,1752849049527,-460.0,0.00018406,2]
[373056431,1752849049536,-1959.0,0.00018406,2]
[373056433,1752849049545,-460.0,0.00018406,2]
[373056435,1752849049555,-4077.21,0.00018406,2]
[373056437,1752849049565,-1343.08,0.00018406,2]
[373056439,1752849049576,-460.0,0.00018406,2]
[373056441,1752849049586,-460.0,0.00018407,2]
[373056443,1752849049595,-460.0,0.00018408,2]
[373056445,1752849049604,-460.0,0.00018408,2]
[373056447,1752849049614,-460.0,0.00018408,2]
[373056449,1752849049624,-460.0,0.00018408,2]
[373056451,1752849049634,-460.0,0.00018408,2]
[373056453,1752849049643,-460.0,0.00018408,2]
[373056455,1752849049652,-460.0,0.00018408,2]
[373056457,1752849049662,-460.0,0.00018408,2]
[373056459,1752849049672,-460.0,0.00018408,2]
[373056461,1752849049682,-460.0,0.00018408,2]
[373056463,1752849049692,-460.0,0.00018408,2]
[373056465,1752849049701,-416.47905241,0.00018408,2]
[373056467,1752849049711,-460.0,0.00018408,2]
[373056469,1752849049725,-648.75,0.00018408,2]
[373056471,1752849049735,-460.0,0.00018408,2]
[373056473,1752849049744,-460.0,0.00018408,2]
[373056475,1752849049753,-460.0,0.00018408,2]
[373056477,1752849049764,-460.0,0.00018408,2]
[373056479,1752849049773,-460.0,0.00018408,2]
[373056481,1752849049782,-441.56,0.00018408,2]
[373056483,1752849049792,-488.61,0.00018408,2]
[373056485,1752849049802,-460.0,0.00018408,2]
[373056487,1752849049811,-460.0,0.00018409,2]
[373056489,1752849049823,-1500.0,0.00018483,2]
[373056491,1752849049833,-1500.0,0.00018483,2]
[373056493,1752849049843,-877.19794132,0.00018498,2]
[373056495,1752849049853,-151.0,0.000185,2]
[373056497,1752849049862,-460.0,0.00018503,2]
[373056499,1752849049871,-460.0,0.00018503,2]
[373056501,1752849049881,-460.0,0.00018503,2]
[373056503,1752849049890,-460.0,0.00018503,2]
[373056505,1752849049900,-460.0,0.00018503,2]
[373056507,1752849049909,-460.0,0.00018503,2]
[373056509,1752849049919,-460.0,0.00018503,2]
[373056511,1752849049928,-502.49,0.00018503,2]
[373056513,1752849049938,-460.0,0.00018503,2]
[373056515,1752849049947,-460.0,0.00018503,2]
[373056517,1752849049957,-460.0,0.00018503,2]
[373056519,1752849049966,-460.0,0.00018503,2]
[373056528,1752849050062,-460.0,0.00018503,2]
[373056529,1752849050074,-460.0,0.00018503,2]
[373056530,1752849050084,-460.0,0.00018503,2]
[373056531,1752849050093,-460.0,0.00018503,2]
[373056532,1752849050103,-487.38731052,0.00018503,2]
[373056533,1752849050112,-460.0,0.00018503,2]
[373056534,1752849050123,-460.0,0.00018503,2]
[373056535,1752849050132,-808.77,0.00018503,2]
[373056536,1752849050142,-460.0,0.00018503,2]
[373056537,1752849050152,-178.08125072,0.00018503,2]
[373056538,1752849050161,-779.54,0.00018503,2]
[373056539,1752849050171,-460.0,0.00018503,2]
[373056540,1752849050182,-460.0,0.00018503,2]
[373056541,1752849050191,-680.58,0.00018503,2]
[373056542,1752849050201,-460.0,0.00018503,2]
[373056543,1752849050212,-498.2,0.00018504,2]
[373056544,1752849050221,-460.0,0.00018504,2]
[373056545,1752849050231,-460.0,0.00018504,2]
[373056546,1752849050240,-460.0,0.00018504,2]
[373056547,1752849050249,-539.0,0.00018505,2]
[373056548,1752849050259,-460.0,0.00018505,2]
[373056549,1752849050269,-3559.22,0.00018506,2]
[373056550,1752849050278,-1009.17,0.00018506,2]
[373056551,1752849050288,-1147.06,0.00018506,2]
[373056552,1752849050298,-460.0,0.00018507,2]
[373056553,1752849050307,-460.0,0.00018508,2]
[373056554,1752849050316,-460.0,0.00018508,2]
[373056555,1752849050328,-2090.71,0.00018508,2]
[373056556,1752849050337,-460.0,0.00018508,2]
[373056557,1752849050347,-1443.93,0.00018508,2]
[373056558,1752849050356,-3883.56,0.00018508,2]
[373056559,1752849050366,-151.0,0.00018508,2]
[373056560,1752849050375,-1381.69,0.00018508,2]
[373056561,1752849050384,-151.0,0.00018555,2]
[373056562,1752849050393,-151.0,0.00018567,2]
[373056563,1752849050403,-151.0,0.00018567,2]
[373056564,1752849050412,-151.0,0.00018567,2]
[373056565,1752849050422,-222.0,0.00018575,3]
[373056566,1752849050432,-151.0,0.00018608,2]
[373056567,1752849050441,-217.409418,0.00018608,2]
[373056568,1752849050451,-151.0,0.00018608,2]
[373056569,1752849050461,-217.409418,0.00018608,2]
[373056570,1752849050471,-290.242931,0.00018608,2]
[373056571,1752849050481,-151.0,0.00018616,2]
[373056572,1752849050491,-151.0,0.00018616,2]
[373056573,1752849050500,-151.0,0.00018616,2]
[373056574,1752849050510,-251.911228,0.00018616,2]
[373056575,1752849050520,-251.911228,0.00018616,2]
[373056576,1752849050529,-247.942373,0.00018616,2]
[373056577,1752849050539,-259.486165,0.00018616,2]
[373056578,1752849050549,-259.486165,0.00018616,2]
[373056579,1752849050558,-151.0,0.0001862,2]
[373056580,1752849050568,-151.0,0.0001862,2]
[373056581,1752849050580,-1615.520932,0.0001862,2]
[373056582,1752849050590,-1615.520932,0.0001862,2]
[373056583,1752849050600,-460.0,0.00018678,2]
[373056584,1752849050610,-460.0,0.00018678,2]
[373056585,1752849050620,-1449.78,0.00018678,2]
[373056586,1752849050629,-460.0,0.0001868,2]
[373056587,1752849050639,-564.89,0.0001868,2]
[373056589,1752849050648,-460.0,0.0001868,2]
[373056591,1752849050657,-1959.0,0.0001868,2]
[373056593,1752849050667,-460.0,0.0001868,2]
[373056595,1752849050677,-4077.21,0.0001868,2]
[373056597,1752849050687,-1343.08,0.0001868,2]
[373056599,1752849050696,-460.0,0.0001868,2]
[373056601,1752849050706,-462.62533365,0.00018681,2]
[373056603,1752849050717,-460.0,0.00018682,2]
[373056605,1752849050727,-460.0,0.00018682,2]
[373056607,1752849050737,-460.0,0.00018682,2]
[373056609,1752849050746,-460.0,0.00018682,2]
[373056611,1752849050755,-460.0,0.00018682,2]
[373056613,1752849050766,-460.0,0.00018682,2]
[373056615,1752849050775,-460.0,0.00018682,2]
[373056617,1752849050785,-460.0,0.00018682,2]
[373056619,1752849050796,-460.0,0.00018682,2]
[373056621,1752849050806,-460.0,0.00018682,2]
[373056623,1752849050816,-151.0,0.00018682,2]
[373056625,1752849050826,-460.0,0.00018682,2]
[373056627,1752849050836,-494.691019,0.00018682,2]
[373056629,1752849050846,-494.691019,0.00018682,2]
[373056631,1752849050855,-460.0,0.00018682,2]
[373056633,1752849050864,-648.75,0.00018682,2]
[373056635,1752849050874,-460.0,0.00018682,2]
[373056637,1752849050884,-460.0,0.00018682,2]
[373056639,1752849050893,-460.0,0.00018682,2]
[373056641,1752849050904,-460.0,0.00018682,2]
[373056643,1752849050913,-460.0,0.00018682,2]
[373056645,1752849050923,-223.470442,0.00018682,2]
[373056647,1752849050932,-223.470442,0.00018682,2]
[373056649,1752849050942,-488.61,0.00018682,2]
[373056651,1752849050951,-460.0,0.00018682,2]
[373056653,1752849050960,-151.0,0.00018683,2]
[373056655,1752849050970,-151.0,0.00018683,2]
[373056657,1752849050979,-151.0,0.00018683,2]
[373056659,1752849050989,-151.0,0.00018683,2]
[373056661,1752849050999,-151.0,0.00018683,2]
[373056663,1752849051008,-460.0,0.00018683,2]
[373056665,1752849051017,-323.785523,0.00018683,2]
[373056666,1752849051027,-323.785523,0.00018683,2]
[373056667,1752849051036,-151.0,0.00018732,2]
[373056669,1752849051047,-180.650179,0.00018732,2]
[373056671,1752849051056,-180.650179,0.00018732,2]
[373056673,1752849051066,-200.0,0.00018776,2]
[373056675,1752849051077,-460.0,0.00018777,2]
[373056677,1752849051087,-320.0656458,0.00018777,2]
[373056679,1752849051096,-460.0,0.00018777,2]
[373056681,1752849051105,-460.0,0.00018777,2]
[373056683,1752849051114,-460.0,0.00018777,2]
[373056685,1752849051124,-460.0,0.00018777,2]
[373056687,1752849051133,-460.0,0.00018777,2]
[373056689,1752849051142,-502.49,0.00018777,2]
[373056691,1752849051152,-460.0,0.00018777,2]
[373056693,1752849051161,-460.0,0.00018777,2]
[373056694,1752849051170,-460.0,0.00018777,2]
[373056695,1752849051180,-460.0,0.00018777,2]
[373056696,1752849051189,-460.0,0.00018777,2]
[373056697,1752849051198,-460.0,0.00018777,2]
[373056698,1752849051208,-460.0,0.00018777,2]
[373056699,1752849051218,-460.0,0.00018777,2]
[373056700,1752849051227,-153.32,0.00018777,2]
[373056701,1752849051237,-808.77,0.00018777,2]
[373056702,1752849051246,-460.0,0.00018777,2]
[373056703,1752849051256,-225.808841,0.00018777,2]
[373056704,1752849051265,-779.54,0.00018777,2]
[373056705,1752849051275,-460.0,0.00018777,2]
[373056706,1752849051284,-460.0,0.00018777,2]
[373056707,1752849051294,-680.58,0.00018777,2]
[373056708,1752849051303,-498.2,0.00018778,2]
[373056709,1752849051313,-549.94,0.00018778,2]
[373056710,1752849051325,-460.0,0.00018778,2]
[373056711,1752849051335,-460.0,0.00018778,2]
[373056712,1752849051345,-539.0,0.00018779,2]
[373056713,1752849051355,-460.0,0.00018779,2]
[373056714,1752849051365,-3559.22,0.0001878,2]
[373056715,1752849051375,-1009.17,0.0001878,2]
[373056716,1752849051385,-1147.06,0.0001878,2]
[373056717,1752849051394,-460.0,0.00018781,2]
[373056718,1752849051404,-151.0,0.00018782,2]
[373056719,1752849051414,-151.0,0.00018782,2]
[373056720,1752849051424,-151.0,0.00018782,2]
[373056721,1752849051434,-151.0,0.00018782,2]
[373056722,1752849051443,-367.320946,0.00018782,2]
[373056723,1752849051453,-367.320946,0.00018782,2]
[373056724,1752849051463,-460.0,0.00018782,2]
[373056725,1752849051472,-151.0,0.00018782,2]
[373056726,1752849051482,-2090.71,0.00018782,2]
[373056727,1752849051492,-460.0,0.00018782,2]
[373056728,1752849051501,-151.0,0.00018782,2]
[373056730,1752849051511,-713.734342,0.00018782,2]
[373056731,1752849051520,-713.734342,0.00018782,2]
[373056733,1752849051529,-1443.93,0.00018782,2]
[373056735,1752849051539,-3883.56,0.00018782,2]
[373056737,1752849051549,-151.0,0.00018782,2]
[373056739,1752849051559,-254.747536,0.00018782,2]
[373056741,1752849051568,-1381.69,0.00018782,2]
[373056743,1752849051581,-423.092076,0.00018783,2]
[373056745,1752849051591,-423.092076,0.00018783,2]
[373056747,1752849051600,-151.0,0.00018786,2]
[373056749,1752849051610,-275.338132,0.00018786,2]
[373056751,1752849051619,-275.338132,0.00018786,2]
[373056753,1752849051628,-333.065278,0.00018786,2]
[373056755,1752849051638,-333.065278,0.00018786,2]
[373056757,1752849051647,-151.0,0.000188,2]
[373056759,1752849051657,-2000.0,0.00018853,2]
[373056761,1752849051666,-151.0,0.00018884,2]
[373056763,1752849051676,-151.0,0.00018884,2]
[373056766,1752849051686,-2897.30365136,0.000189,2]
[373056767,1752849051696,-460.0,0.00018952,2]
[373056769,1752849051706,-460.0,0.00018952,2]
[373056771,1752849051717,-1449.78,0.00018952,2]
[373056773,1752849051727,-460.0,0.00018954,2]
[373056775,1752849051737,-564.89,0.00018954,2]
[373056777,1752849051748,-460.0,0.00018954,2]
[373056779,1752849051758,-1959.0,0.00018954,2]
[373056781,1752849051767,-460.0,0.00018954,2]
[373056783,1752849051777,-4077.21,0.00018954,2]
[373056785,1752849051787,-1343.08,0.00018954,2]
[373056787,1752849051797,-460.0,0.00018954,2]
[373056789,1752849051808,-460.0,0.00018956,2]
[373056791,1752849051817,-460.0,0.00018956,2]
[373056793,1752849051830,-460.0,0.00018956,2]
[373056795,1752849051839,-460.0,0.00018956,2]
[373056797,1752849051849,-200.14,0.00018956,2]
[373056799,1752849051859,-460.0,0.00018956,2]
[373056801,1752849051868,-460.0,0.00018956,2]
[373056803,1752849051877,-460.0,0.00018956,2]
[373056804,1752849051887,-460.0,0.00018956,2]
[373056806,1752849051896,-460.0,0.00018956,2]
[373056808,1752849051906,-460.0,0.00018956,2]
[373056810,1752849051915,-648.75,0.00018956,2]
[373056812,1752849051925,-460.0,0.00018956,2]
[373056814,1752849051934,-460.0,0.00018956,2]
[373056816,1752849051944,-460.0,0.00018956,2]
[373056818,1752849051953,-460.0,0.00018956,2]
[373056820,1752849051962,-460.0,0.00018956,2]
[373056822,1752849051972,-488.61,0.00018956,2]
[373056824,1752849051982,-460.0,0.00018956,2]
[373056826,1752849051992,-460.0,0.00018957,2]
[373056828,1752849052001,-214.4881157,0.00019008,2]
[373056830,1752849052010,-160.0,0.00019008,2]
[373056832,1752849052020,-160.0,0.00019008,2]
[373056834,1752849052029,-230.89969799,0.00019008,2]
[373056836,1752849052038,-476.25663856,0.00019008,2]
[373056838,1752849052047,-160.0,0.00019008,2]
[373056840,1752849052057,-215.63268315,0.00019008,2]
[373056842,1752849052066,-839.30593155,0.00019008,2]
[373056844,1752849052078,-160.0,0.00019008,2]
[373056855,1752849052171,-160.0,0.00019008,2]
[373056857,1752849052181,-160.0,0.00019008,2]
[373056859,1752849052190,-525.75194068,0.00019008,2]
[373056861,1752849052199,-12610.43989422,0.00019008,2]
[373056862,1752849052207,-160.0,0.00019008,2]
[373056864,1752849052216,-160.0,0.00019008,2]
[373056866,1752849052225,-500.0,0.00019031,2]
[373056868,1752849052235,-1600.20592339,0.00019031,2]
[373056870,1752849052243,-160.0,0.0001905,2]
[373056872,1752849052253,-460.0,0.00019051,2]
[373056874,1752849052262,-460.0,0.00019051,2]
[373056876,1752849052271,-460.0,0.00019051,2]
[373056878,1752849052281,-460.0,0.00019051,2]
[373056881,1752849052290,-460.0,0.00019051,2]
[373056882,1752849052299,-460.0,0.00019051,2]
[373056884,1752849052308,-502.49,0.00019051,2]
[373056886,1752849052317,-460.0,0.00019051,2]
[373056888,1752849052330,-460.0,0.00019051,2]
[373056891,1752849052339,-460.0,0.00019051,2]
[373056892,1752849052349,-460.0,0.00019051,2]
[373056894,1752849052358,-460.0,0.00019051,2]
[373056897,1752849052368,-460.0,0.00019051,2]
[373056898,1752849052378,-460.0,0.00019051,2]
[373056900,1752849052387,-460.0,0.00019051,2]
[373056902,1752849052397,-808.77,0.00019051,2]
[373056904,1752849052407,-460.0,0.00019051,2]
[373056906,1752849052416,-779.54,0.00019051,2]
[373056908,1752849052426,-460.0,0.00019051,2]
[373056910,1752849052435,-460.0,0.00019051,2]
[373056912,1752849052444,-680.58,0.00019051,2]
[373056914,1752849052454,-151.0,0.00019052,2]
[373056916,1752849052463,-498.2,0.00019052,2]
[373056918,1752849052472,-318.462048,0.00019052,2]
[373056920,1752849052481,-318.462048,0.00019052,2]
[373056922,1752849052492,-386.50937149,0.00019052,2]
[373056924,1752849052502,-460.0,0.00019052,2]
[373056926,1752849052511,-539.0,0.00019053,2]
[373056928,1752849052520,-460.0,0.00019053,2]
[373056930,1752849052530,-3559.22,0.00019054,2]
[373056932,1752849052539,-1009.17,0.00019054,2]
[373056934,1752849052549,-1147.06,0.00019054,2]
[373056936,1752849052559,-460.0,0.00019055,2]
[373056938,1752849052569,-460.0,0.00019056,2]
[373056940,1752849052581,-2090.71,0.00019056,2]
[373056942,1752849052590,-460.0,0.00019056,2]
[373056944,1752849052600,-1443.93,0.00019056,2]
[373056946,1752849052610,-3883.56,0.00019056,2]
[373056948,1752849052619,-1381.69,0.00019056,2]
[373056950,1752849052628,-151.0,0.00019057,2]
[373056952,1752849052637,-194.786945,0.00019057,2]
[373056954,1752849052647,-194.786945,0.00019057,2]
[373056956,1752849052656,-151.0,0.00019093,2]
[373056958,1752849052667,-172.204093,0.00019093,2]
[373056959,1752849052676,-151.0,0.00019093,2]
[373056960,1752849052686,-251.911228,0.00019093,2]
[373056962,1752849052695,-251.911228,0.00019093,2]
[373056964,1752849052705,-259.486165,0.00019093,2]
[373056966,1752849052716,-259.486165,0.00019093,2]
[373056968,1752849052726,-151.0,0.000191,2]
[373056970,1752849052736,-151.0,0.00019156,2]
[373056971,1752849052745,-494.691019,0.00019156,2]
[373056974,1752849052756,-494.691019,0.00019156,2]
[373056975,1752849052765,-151.0,0.00019156,2]
[373056978,1752849052775,-223.470442,0.00019156,2]
[373056980,1752849052784,-223.470442,0.00019156,2]
[373056981,1752849052795,-415.5997077,0.00019159,2]
[373056983,1752849052804,-3346.5712059,0.00019178,2]
[373056985,1752849052814,-226.387699,0.00019178,2]
[373056987,1752849052826,-666.0,0.00019178,2]
[373056989,1752849052835,-460.0,0.00019226,2]
[373056991,1752849052845,-194.6345382,0.00019226,2]
[373056993,1752849052854,-1449.78,0.00019226,2]
[373056995,1752849052864,-460.0,0.00019228,2]
[373056997,1752849052873,-564.89,0.00019228,2]
[373056999,1752849052883,-460.0,0.00019228,2]
[373057001,1752849052892,-1959.0,0.00019228,2]
[373057003,1752849052902,-460.0,0.00019228,2]
[373057005,1752849052911,-4077.21,0.00019228,2]
[373057007,1752849052920,-1343.08,0.00019228,2]
[373057009,1752849052929,-460.0,0.00019228,2]
[373057011,1752849052938,-460.0,0.0001923,2]
[373057013,1752849052947,-460.0,0.0001923,2]
[373057015,1752849052956,-460.0,0.0001923,2]
[373057017,1752849052965,-460.0,0.0001923,2]
[373057019,1752849052974,-460.0,0.0001923,2]
[373057021,1752849052983,-460.0,0.0001923,2]
[373057023,1752849052992,-460.0,0.0001923,2]
[373057025,1752849053001,-460.0,0.0001923,2]
[373057027,1752849053010,-460.0,0.0001923,2]
[373057029,1752849053019,-460.0,0.0001923,2]
[373057031,1752849053028,-648.75,0.0001923,2]
[373057033,1752849053037,-460.0,0.0001923,2]
[373057035,1752849053046,-460.0,0.0001923,2]
[373057037,1752849053055,-460.0,0.0001923,2]
[373057039,1752849053064,-460.0,0.0001923,2]
[373057041,1752849053077,-460.0,0.0001923,2]
[373057043,1752849053086,-488.61,0.0001923,2]
[373057045,1752849053095,-460.0,0.0001923,2]
[373057047,1752849053105,-460.0,0.00019231,2]
[373057048,1752849053114,-6955.9842611,0.00019314,2]
[373057050,1752849053123,-151.0,0.00019314,2]
[373057052,1752849053132,-207.4,0.00019314,2]
[373057054,1752849053141,-151.0,0.00019314,2]
[373057056,1752849053150,-151.0,0.00019314,2]
[373057058,1752849053159,-151.0,0.00019314,2]
[373057060,1752849053169,-151.0,0.00019314,2]
[373057062,1752849053178,-151.0,0.00019314,2]
[373057064,1752849053187,-151.0,0.00019314,2]
[373057066,1752849053197,-151.0,0.00019314,2]
[373057069,1752849053206,-151.0,0.00019314,2]
[373057071,1752849053215,-3801.642,0.00019314,2]
[373057073,1752849053224,-151.0,0.00019314,2]
[373057074,1752849053233,-151.0,0.00019314,2]
[373057076,1752849053242,-151.0,0.00019314,2]
[373057078,1752849053251,-151.0,0.00019314,2]
[373057080,1752849053260,-151.0,0.00019314,2]
[373057082,1752849053269,-151.0,0.00019314,2]
[373057084,1752849053278,-151.0,0.00019314,2]
[373057086,1752849053287,-151.0,0.00019314,2]
[373057088,1752849053296,-151.0,0.00019314,2]
[373057090,1752849053306,-151.0,0.00019314,2]
[373057092,1752849053314,-151.0,0.00019314,2]
[373057094,1752849053326,-151.0,0.00019314,2]
[373057096,1752849053336,-151.0,0.00019314,2]
[373057098,1752849053345,-151.0,0.00019314,2]
[373057100,1752849053354,-151.0,0.00019314,2]
[373057102,1752849053363,-151.0,0.00019314,2]
[373057104,1752849053373,-183.99545918,0.00019314,2]
[373057106,1752849053382,-151.0,0.00019314,2]
[373057108,1752849053391,-151.0,0.00019314,2]
[373057110,1752849053401,-151.0,0.00019314,2]
[373057112,1752849053410,-151.0,0.00019314,2]
[373057114,1752849053419,-290.14388846,0.00019314,2]
[373057116,1752849053429,-151.0,0.00019314,2]
[373057118,1752849053438,-151.0,0.00019314,2]
[373057120,1752849053447,-151.0,0.00019314,2]
[373057122,1752849053457,-151.0,0.00019314,2]
[373057124,1752849053467,-151.0,0.00019314,2]
[373057126,1752849053477,-151.0,0.00019314,2]
[373057128,1752849053486,-151.0,0.00019314,2]
[373057130,1752849053495,-184.17851102,0.00019314,2]
[373057132,1752849053505,-25000.0,0.00019314,2]
[373057134,1752849053514,-24161.54485617,0.00019314,2]
[373057136,1752849053524,-151.0,0.00019314,2]
[373057138,1752849053534,-217.409418,0.00019314,2]
[373057140,1752849053543,-151.0,0.00019314,2]
[373057142,1752849053553,-217.409418,0.00019314,2]
[373057144,1752849053564,-151.0,0.00019314,2]
[373057146,1752849053576,-151.0,0.00019314,2]
[373057149,1752849053586,-151.0,0.00019314,2]
[373057151,1752849053595,-151.0,0.00019314,2]
[373057153,1752849053605,-151.0,0.00019314,2]